Cogmind - Beta 16 @@@ ROGUE MODE // 2025.11.17 @ 20:27:15 Player: Mozco Result: Destroyed by AM-ZLO(R) with Subdweller Laser Performance ------------- Evolutions (0) 0 Regions Visited (2) 400 Robots Destroyed (41) 205 Value Destroyed (1035) 1035 Prototype IDs (2) 40 Alien Tech Used (0) 0 Bonus (7) 7 TOTAL SCORE: 1687 Bonus ------- Follower Combat Kills 7 Cogmind --------- Core Integrity 0/250 Matter 240/300 Energy 248/250 System Corruption 0% Temperature Cool (6) Movement Walking (190) Ox1 Location -10/Subcaves Parts ------- > --- POWER (1) -------- Ion Engine > --- PROPULSION (2) --- Aluminum Leg Aluminum Leg > --- UTILITY (2) ------ Large Storage Unit Light Armor Plating > --- WEAPON (2) ------- Heavy EM Pulse Gun Improved Light Cannon > --- INVENTORY (15) --- Aluminum Leg Huge Storage Unit Structural Scanner Light Armor Plating Light Armor Plating Heavy EM Pulse Gun Medium Laser Battle Rifle Grenade Launcher Grenade Launcher Peak State ------------ > --- POWER ------------ Ion Engine > --- PROPULSION ------- Aluminum Leg Aluminum Leg > --- UTILITY ---------- Small Storage Unit Large Storage Unit > --- WEAPON ----------- Heavy EM Pulse Gun Heavy EM Pulse Gun > --- INVENTORY -------- Ion Engine Ion Engine Aluminum Leg Aluminum Leg Aluminum Leg Aluminum Leg Improved Heat Sink Weapon Shielding Weapon Shielding Heavy EM Pulse Gun Heavy EM Pulse Gun Medium Laser Assault Rifle Improved Light Cannon Grenade Launcher [Rating: 11] Favorites ----------- Power Ion Engine Engine Ion Engine Propulsion Aluminum Leg Leg Aluminum Leg Utility Large Storage Unit Device Structural Scanner Storage Large Storage Unit Protection Weapon Shielding Weapon Heavy EM Pulse Gun Energy Gun Heavy EM Pulse Gun Ballistic Cannon Improved Light Cannon Launcher Grenade Launcher Build | -11 -10 -10 ------- Run | Yrd Mat Sub Slots Evolved . | . . . Power . | . . . Propulsion . | . . . Utility . | . . . Weapon . | . . . Parts Attached 28 | 6 14 8 Power 3 | 1 2 . Engine 3 | 1 2 . Core . | . . . Reactor . | . . . Propulsion 9 | 2 5 2 Treads . | . . . Leg 9 | 2 5 2 Wheel . | . . . Hover . | . . . Flight . | . . . Utility 9 | 1 4 4 Device 1 | . . 1 Storage 3 | 1 2 . Processor . | . . . Hackware . | . . . Protection 5 | . 2 3 Artifact . | . . . Weapon 7 | 2 3 2 Energy Gun 5 | 2 2 1 Energy Cannon . | . . . Ballistic Gun . | . . . Ballistic Cannon 1 | . . 1 Launcher 1 | . 1 . Special Weapon . | . . . Impact Weapon . | . . . Slashing Weapon . | . . . Piercing Weapon . | . . . Special Melee Weapon . | . . . Unidentified Prototypes . | . . . Parts Lost 9 | . 3 6 Power 1 | . 1 . Propulsion 3 | . . 3 Utility 2 | . . 2 Weapon 3 | . 2 1 Highest Loss Streak 3 | . 1 3 To Critical Strikes . | . . . Average Backups 12 | . 13 12 Power . | . 1 . Propulsion 2 | . 3 2 Utility 4 | . 3 4 Weapon 4 | . 5 4 Tool/Special . | . . . Unused Backups 12 | . 7 5 Power 1 | . 1 . Propulsion 4 | . 3 1 Utility 2 | . 1 1 Weapon 5 | . 2 3 Tool/Special . | . . . Average Slot Usage (%) 98 | . 96 99 Engine 13 | . 13 14 Leg 27 | . 28 27 Device 1 | . . 3 Storage 14 | . 15 14 Protection 10 | . 10 10 Energy Gun 22 | . 26 18 Ballistic Cannon 2 | . . 5 Launcher 2 | . 1 4 Peak Build Rating 11 | 6 11 10 Average Rating 9 | 4 9 9 On Entrance 5 | . 6 9 Avg Prop Armor Cover (%) . | . . . Naked Turns . | . . . Heaviest Build 91 | 12 91 35 Greatest Support 20 | 20 20 20 Greatest Overweight (x) 4 | 1 4 1 Average Overweight (x) . | . . 1 Largest Inventory Capacity 25 | 8 25 15 Average Capacity 14 | 7 14 15 Most Carried 16 | 2 16 15 Average Carried 12 | 1 13 12 Final Capacity 15 | 8 15 15 Final Carried 15 | 2 15 10 Class Distribution -------------------- 100% | Mutant Dominant Class ---------------- Mutant | -10/Materials Mutant | -10/Subcaves Resources | -11 -10 -10 ----------- Run | Yrd Mat Sub Matter Collected 742 | 200 188 354 Remotely . | . . . Salvage Created 1525 | . 1216 309 Parts 111 | . 81 30 Haulers Intercepted 2 | . 2 . Recyclers Shooed . | . . . Parts Field Recycled . | . . . Retrieved Matter . | . . . Parts Self-Destructed 6 | . . 6 Prevented . | . . . Parts Restored . | . . . Kills | -11 -10 -10 ------- Run | Yrd Mat Sub Combat Hostiles Destroyed 27 | . 18 9 Guns 16 | . 14 2 Cannons 2 | . . 2 AOE 8 | . 3 5 Classes Destroyed 10 | . 7 3 Worker 4 | . 4 . Builder 2 | . 2 . Hauler 2 | . 2 . Recycler 2 | . 2 . Operator 2 | . 2 . Watcher 2 | . 2 . Swarmer 3 | . . 3 Grunt 18 | . 18 . Artisan 2 | . . 2 Subdweller 6 | . . 6 Best Kill Streak 6 | . 6 3 Combat Bots Only 4 | . 4 3 Max Kills in Single Turn 3 | . 2 3 Gunslinging 1 | . 1 . Exploded 3 | . 2 3 Melee . | . . . Uniques/NPCs Destroyed . | . . . Combat | -11 -10 -10 -------- Run | Yrd Mat Sub Hostile Shots Fired 96 | . 54 42 Missed 27 | . 18 9 Hits 69 | . 36 33 Projectile 69 | . 36 33 AOE 2 | . . 2 Actively Blocked 2 | . . 2 Damage Taken 1381 | . 461 920 Core 259 | . 62 197 Absorbed by Shields . | . . . Redirected to Shielding 140 | . 38 102 Regen/Repaired (Parts) 29 | . 29 . Core Remaining (%) 100 | 100 . . Volleys Fired 113 | . 56 57 Largest 2 | . 2 2 Hottest 95 | . 95 95 Shots Fired 200 | . 107 93 Gun 164 | . 105 59 Cannon 13 | . . 13 Launcher 23 | . 2 21 Special . | . . . Kinetic 13 | . . 13 Thermal 26 | . 3 23 Explosive 23 | . 2 21 Electromagnetic 138 | . 102 36 Robot Hit Streak 14 | . 14 14 Robot Miss Streak 5 | . 5 2 Penetration Max . | . . . Secondary Targets 4 | . 4 . Max Gunslinging Chain 1 | . 1 . Shots Hit Robots 106 | . 66 40 Core Hits 56 | . 37 19 Critical Kills . | . . . Critical Parts Destroyed . | . . . Critical Strikes 1 | . 1 . Corrupt 1 | . 1 . Melee Attacks . | . . . Impact . | . . . Slashing . | . . . Piercing . | . . . Sneak Attacks . | . . . Combat Hostiles . | . . . Follow-up Attacks . | . . . Damage Inflicted 2272 | . 1456 816 Guns 1396 | . 1126 270 Cannons 163 | . . 163 Explosions 713 | . 330 383 Melee . | . . . Ramming . | . . . Kinetic 163 | . . 163 Thermal 302 | . 214 88 Explosive 525 | . 142 383 Electromagnetic 1282 | . 1100 182 Impact . | . . . Slashing . | . . . Piercing . | . . . Highest Corruption . | . . . Average Corruption . | . . . Corruption Purged . | . . . Corruption Blocked . | . . . Overload Shots . | . . . Overflow Damage 9 | . . 9 Projectiles . | . . . Explosions 9 | . . 9 Melee . | . . . Knockbacks 2 | . . 2 Impact . | . . . Kinetic 2 | . . 2 Secondary . | . . . Self-Inflicted Damage 114 | . 34 80 Shots 5 | . 1 4 Rammed . | . . . Targets Rammed . | . . . Kicked . | . . . Crushed . | . . . Highest Temperature 246 | . 246 . Average Temperature 65 | . 65 . Received Heat Transfer 414 | . 240 174 Siege Activations . | . . . Martial Activations . | . . . Shielding Activations . | . . . Robots Disrupted 1 | . . 1 Combat Hostiles 1 | . . 1 Robots Corrupted 1 | . 1 . Combat Hostiles 1 | . 1 . Parts Fried 1 | . 1 . Impact Corruptions . | . . . Robots Melted . | . . . Combat Hostiles . | . . . Parts Melted . | . . . Heat Transferred 633 | . 374 259 Parts Sabotaged . | . . . Parts Stolen . | . . . Parts Stripped . | . . . Power Chain Reactions 4 | . 4 . Alert | -11 -10 -10 ------- Run | Yrd Mat Sub Maximum Alert Level 1 | . 1 . Low Security (%) 65 | 100 64 . Level 1 34 | . 35 . Level 2 . | . . . Level 3 . | . . . Level 4 . | . . . Level 5 . | . . . High Security . | . . . Max Security . | . . . Peak Influence 291 | . 291 . Initial . | . . . Average 125 | . 130 . Influence Increases 808 | . 714 94 Destroy 0b10 Robot/C 440 | . 360 80 Destroy 0b10 Robot/NC 70 | . 70 . Destroy Leader 118 | . 108 10 Allied During Kill 4 | . . 4 Successful Hack 16 | . 16 . Select Force Hacks 60 | . 60 . Disable Machine 30 | . 30 . Destroy Structure 40 | . 40 . Partial Spotted 15 | . 15 . Lose Combat Pursuer 15 | . 15 . Influence Decreases 808 | . 522 286 Entered New Map 93 | . . 93 Time Decay 665 | . 492 173 Lost Part 30 | . 30 . Lost Ally 20 | . . 20 Squads Dispatched 7 | . 7 . Investigation 4 | . 4 . Extermination . | . . . Reinforcement 3 | . 3 . Assault . | . . . Garrison . | . . . Intercept . | . . . Searches Triggered . | . . . Construction Impeded . | . . . Haulers Reinforced . | . . . Active Scanning Responses . | . . . Cargo Convoy Interrupts . | . . . Stealth | -11 -10 -10 --------- Run | Yrd Mat Sub Distress Signals 1 | . 1 . Communications Jammed . | . . . Distress Signals . | . . . Times Spotted 40 | . 28 12 Peak Tracking Total 4 | . 4 3 Tactical Retreats 1 | . 1 . Traps | -11 -10 -10 ------- Run | Yrd Mat Sub Traps Triggered 4 | . 1 3 Indirectly . | . . . Trap Hack Attempts . | . . . Triggered . | . . . Disarmed . | . . . Reprogrammed . | . . . Reused . | . . . Traps Extracted . | . . . Installed . | . . . Triggered . | . . . Machines | -11 -10 -10 ---------- Run | Yrd Mat Sub Machines Disabled 2 | . 2 . Max in Single Turn 2 | . 2 . Machines Repaired . | . . . Machines Dismantled . | . . . Machines Sabotaged . | . . . Overloaded Fab Kills . | . . . Hacking | -11 -10 -10 --------- Run | Yrd Mat Sub Machines Accessed 8 | . 8 . Terminals 5 | . 5 . Fabricators . | . . . Repair Stations 1 | . 1 . Recycling Units 2 | . 2 . Scanalyzers . | . . . Garrison Access . | . . . Total Hacks 15 | . 15 . Successful 10 | . 10 . Failed 4 | . 4 . Catastrophic 1 | . 1 . Database Lockouts 1 | . 1 . Manual 12 | . 12 . Terminals 11 | . 11 . Fabricators . | . . . Repair Stations 2 | . 2 . Recycling Units 2 | . 2 . Scanalyzers . | . . . Garrison Access . | . . . Terminal Hacks 4 | . 4 . Robot Analysis 2 | . 2 . Prototype ID Bank 1 | . 1 . Registered Components 1 | . 1 . Fabricator Hacks . | . . . Repair Station Hacks 2 | . 2 . Scan Component 1 | . 1 . Repair 1 | . 1 . Recycling Unit Hacks . | . . . Scanalyzer . | . . . Garrison Access Hacks . | . . . Unauthorized Hacks 4 | . 4 . Terminals 2 | . 2 . Botnet 2 | . 2 . Fabricators . | . . . Repair Stations . | . . . Recycling Units 2 | . 2 . Tunnel 2 | . 2 . Scanalyzers . | . . . Garrison Access . | . . . Data Cores Recovered . | . . . Used . | . . . Hacking Detections 5 | . 5 . Full Trace Events 2 | . 2 . Feedback Events . | . . . Feedback Blocked . | . . . Robot Schematics Acquired . | . . . Robots Built . | . . . Authchips . | . . . Time . | . . . Total Robot Build Rating . | . . . Part Schematics Acquired . | . . . Parts Built . | . . . Authchips . | . . . Time . | . . . Total Part Build Rating . | . . . Part Studies Acquired . | . . . Parts Repaired 1 | . 1 . Time 26 | . 26 . Parts Recycled . | . . . Recycled Matter . | . . . Retrieved Matter . | . . . Retrieved Components . | . . . Parts Scanalyzed . | . . . Part Schematics Acquired . | . . . Parts Damaged . | . . . Bothacking | -11 -10 -10 ------------ Run | Yrd Mat Sub Used RIF Installer . | . . . Robots Hacked . | . . . Non-combat . | . . . Combat . | . . . Robot Hacks Applied . | . . . Relay Couplers Released . | . . . Fabnet Peak Effective % . | . . . Robots Rewired 1 | . . 1 Allies Hacked . | . . . Hacks Repelled . | . . . Allies | -11 -10 -10 -------- Run | Yrd Mat Sub Total Allies 1 | . . 1 Largest Group 1 | . . 1 Highest-Rated Group 15 | . . 15 Highest-Rated Ally 15 | . . 15 Total Orders . | . . . Ally Attacks 1 | . . 1 Total Damage 15 | . . 15 Kills 1 | . . 1 Allies Corrupted . | . . . Allies Melted . | . . . Intel | -11 -10 -10 ------- Run | Yrd Mat Sub Active Infowar (turns) 364 | . . 364 Structural 364 | . . 364 Robot Analysis Total 2 | . 2 . Derelict Logs Recovered 1 | . . 1 Drone Launches . | . . . Drone Recoveries . | . . . Exploration | -11 -10 -10 ------------- Run | Yrd Mat Sub Turns Passed 3042 | 61 1526 1455 Spaces Moved 1358 | 46 637 675 Core 12 | 12 . . Treads . | . . . Legs 1346 | 34 637 675 Wheels . | . . . Hover . | . . . Flight . | . . . Fastest Speed 50 | 50 120 190 Average Speed 185 | 110 185 190 Slowest Speed 400 | 120 400 190 Overloaded Moves . | . . . Propulsion Burnouts . | . . . Robots Hopped . | . . . Potential Cave-ins 1 | . . 1 Cave-ins Triggered . | . . . Exploration Rate (%) 48 | 3 90 53 Regions Visited 2 Branch Regions 1 Pre-discovered Areas 2 | . 2 . Known Exits Taken . | . . . Unknown Exits Taken 2 | 1 1 . Scrap Searched . | . . . Spaces Dug 11 | . . 11 Terrain Destroyed 170 | . 37 133 Melee . | . . . Projectile . | . . . AOE 170 | . 37 133 Terrain Rammed . | . . . Walls Destroyed . | . . . Machines Disabled . | . . . Actions | -11 -10 -10 --------- Run | Yrd Mat Sub Total 1683 | 53 881 749 Wait 134 | . 134 . Move 1356 | 45 636 675 Hop . | . . . Pick Up 26 | 2 23 1 Fast Attach 9 | 6 3 . Attach 8 | . 2 6 Detach . | . . . Swap 19 | . 12 7 Drop 15 | . 15 . Fire 113 | . 56 57 Melee . | . . . Ram . | . . . Kick . | . . . Crush . | . . . Escape Stasis . | . . . Rewire 3 | . . 3 Trap . | . . . Miscellaneous . | . . . Route ------- -11/Scrapyard -10/Materials (discovered 4 exits: [*Mat x3] / [*Sub]) -10/Subcaves (discovered 1 exit: [*Mat]) History --------- Turn | Location | Event 2 | -11/Scrapyard | Met Revision 17 9 | -11/Scrapyard | Discovered new exit (range 15) 62 | -11/Scrapyard | Entered Materials 234 | -10/Materials | Discovered new exit (range 12) 306 | -10/Materials | Build established: Mutant 705 | -10/Materials | Central database locked down 846 | -10/Materials | Discovered new exit (range 9) 965 | -10/Materials | Discovered new exit (range 16) 1281 | -10/Materials | Repaired Grenade Launcher 1566 | -10/Materials | Discovered new exit (range 6) 1588 | -10/Materials | Entered Subcaves 1592 | -10/Subcaves | Shifting Twisted Machinery released Battle Rifle 1693 | -10/Subcaves | Shifting Twisted Machinery released Sub. Power Source 1701 | -10/Subcaves | Shifting Twisted Machinery released Humpback 1807 | -10/Subcaves | Ambushed by Subdwellers from Twisted Machinery 2088 | -10/Subcaves | Learned Materials trap positions 2129 | -10/Subcaves | Ambushed by Subdweller buried in earth 2238 | -10/Subcaves | Ambushed by Subdweller buried in earth 2244 | -10/Subcaves | Core integrity fell below 50% 2426 | -10/Subcaves | Ambushed by angry Subdweller bent on revenge 2440 | -10/Subcaves | Core integrity fell below 20% 2480 | -10/Subcaves | Lost 3 parts (2n1u) 2557 | -10/Subcaves | A swath of the cavern ceiling suddenly collapsed 2671 | -10/Subcaves | Curiously followed by a Cobbler waking with a query about "LVR3C" 2999 | -10/Subcaves | Discovered new exit (range 11) 3043 | -10/Subcaves | Destroyed by AM-ZLO(R) with Subdweller Laser Last Messages --------------- 02781_ GI-KGN(O) collects matter. 02785_ GI-KGN(O) puts together Riot Gun. 02786_ GI-KGN(O) collects matter. 02825_ GI-KGN(O) puts together Flamer. 02850_ QW-OAP(u) deconstructs Twisted Machinery. 02860_ GI-KGN(O) collects matter. 02861_ QW-OAP(u) cries out in pain. 02861_ QW-OAP(u) destroyed. 02865_ GI-KGN(O) collects matter. 02872_ Acquired 11 matter. 02877_ GI-KGN(O) collects matter. 02886_ GN-DE6(R): "ECOKILL!" 02904_ GN-DE6(R) knocked back. 02907_ GN-DE6(R) destroyed. 02916_ Acquired 51 matter. 02918_ Subatomizers dissect the Corrupted Disposable Heat Sink. 02918_ Acquired 10 matter. 02923_ Acquired 1 matter. 02954_ Acquired Battle Rifle. 02999_ EXIT=FOUND Map ----- +----------------------------------------------------+ | ??????????????????????????????????????????????? | | ??????????????????????????????????????????????? | | ??????????????????????????????????????????????? | | ??????????????????????????????????????????????? | | ??????????????????????????????????????????????? | | ??????????????????????????????????????????????? | | ??????????????????????????????????????????????? | | ??????????????????????????????????????????????? | | ??????????????????????????????????????????????? | | ??????????????????????????????????????????????? | | ??????????????????????????????????????????????? | | ??????????????????????????????????????????????? | | ???????????????## ???????????????????????????? | | ??????????????# ????????? ??????????????? | | ??????????????# #???????? %??????????????? | | ??????????????# #?????? #??????????????? | | ??????????????# ?????? RR#??????????????? | | ??????????????# #????# #????? ###????? | | ??????????????# ##?# ##????# ##??? | | ??????????????# ## #???## #??? | | ??????????????? ?????# ??# | | ????????????????# ??????# < #?# | | ????????????????# ???????## ?## | | ?????????????????# #???????## ??# | | ??????????????????# #??????## #### | | ?????????????????## @ #???????# ## | | ????????????????## #???????? # | | ????????????????# ##????????# #?# | | ??????????????# ## ##????????# #??# | | ??????????????# #?# ##???##### #### | | ??????????????# ###?## O ##### ## | | ??????????????# ????## ## | | ??????????????#?????# | | ????????????????????#### | | ???????????????????????##### | | ???????????????????????????# ## | | ???????????????????????# ###### | | ???????????????????????# ##????# | | ???????????????????????# ##?????# | | ???????????????????????#######??????# # | | ????????????????????????????????????########### | | ??????????????????????????????????????????????? | | ??????????????????????????????????????????????? | | ??????????????????????????????????????????????? | | ??????????????????????????????????????????????? | | ??????????????????????????????????????????????? | | ??????????????????????????????????????????????? | | ??????????????????????????????????????????????? | | ??????????????????????????????????????????????? | | ??????????????????????????????????????????????? | +----------------------------------------------------+ Best States ------------- Heat Dissipation 25 Energy Generation 10 Energy Capacity 250 Matter Stores 300 Matter Capacity 300 Sight Range 16 Terrain Scan Density 10 Armor Coverage 150 Weapon Shielding 33 Evasion (%) 55 Item Schematics ----------------- None Robot Schematics ------------------ None Fabricated ------------ Nothing Repaired ---------- Grenade Launcher | 51% | -10/Materials Studied --------- None Alien Tech Used ----------------- None Achievements -------------- None Challenges ------------ None Game ------ Seed AdvancedNetworkedTrap Manual? 0 Play Time 00:20:23 Cumulative 283.0 hours Start 2025.11.17 @ 19:57:42 End 2025.11.17 @ 20:27:15 Sessions 1 Manual Loads 0 Difficulty Rogue Special Mode None Game No. 306 Rogue 302 Adventurer 3 Explorer 1 Win Type - Total 1 Types 1/0/0/0/0/0/0/0/0/0 Lore% 78 Gallery% 76 Achievement% 61 Wizard Run 0 Options --------- Layout 0 ASCII 0 Keyboard 0 Movement Mouse Keybinds 0 Fullscreen 2 Font 18/SmallcapsGlow Map View 76x50 Zoom Use 0% Tactical HUD 1 Map Filters NONE Filters NONE Steam 1 RUN: ed90d944-bd21-4b7f-8a7e-a74893ba956a